fUSD/lending_fUSD_20251229
["ID","MTS","AMOUNT","RATE_DAILY","PERIOD"]
[399988085,1766981433801,-880.56104678,0.0001283,2]
[399988086,1766981433810,-880.56104678,0.0001283,2]
[399988087,1766981433820,-880.56104678,0.0001283,2]
[399988088,1766981433830,-880.56104678,0.0001283,2]
[399988089,1766981433839,-880.56104678,0.0001283,2]
[399988090,1766981433849,-880.56104678,0.0001283,2]
[399988091,1766981433858,-880.56104678,0.0001283,2]
[399988092,1766981433868,-880.56104678,0.0001283,2]
[399988093,1766981433877,-880.56104678,0.0001283,2]
[399988094,1766981433887,-880.56104678,0.0001283,2]
[399988095,1766981433896,-880.56104678,0.0001283,2]
[399988096,1766981433906,-880.56104678,0.0001283,2]
[399988097,1766981433916,-880.56104678,0.0001283,2]
[399988098,1766981433925,-880.56104678,0.0001283,2]
[399988099,1766981433935,-880.56104678,0.0001283,2]
[399988100,1766981433944,-880.56104678,0.0001283,2]
[399988101,1766981433953,-880.56104678,0.0001283,2]
[399988102,1766981433964,-880.56104683,0.0001283,2]
[399988103,1766981433974,-526786.84931312,0.00012831,2]
[399988104,1766981433987,-20549.61169948,0.00012831,2]
[399988105,1766981433999,-86138.96710599,0.00012831,2]
[399988106,1766981434015,-30189.45062637,0.00012831,2]
[399988107,1766981434026,-300.0,0.00012915,2]
[399988108,1766981434036,-215.0738,0.00012925,2]
[399988109,1766981434046,-200.0,0.00012925,2]
[399988110,1766981434055,-200.0,0.00012925,2]
[399988111,1766981434066,-500.0,0.00012925,2]
[399988112,1766981434076,-487.3,0.00012931,2]
[399988113,1766981434087,-518.79982425,0.00013,2]
[399988114,1766981434097,-2906.6,0.0001318,2]
[399988115,1766981434107,-487.3,0.00013205,2]
[399988116,1766981434117,-487.3,0.00013479,2]
[399988117,1766981434126,-2906.6,0.0001358,2]
[399988118,1766981434136,-595.19,0.00013699,2]
[399988119,1766981434147,-500.0,0.00013699,2]
[399988120,1766981434157,-487.3,0.00013753,2]
[399988121,1766981434166,-255.0,0.00013933,2]
[399988122,1766981434175,-2906.6,0.00013979,2]
[399988123,1766981434184,-487.3440973,0.00014027,2]
[399988124,1766981434194,-420.0,0.00014072,2]
[399988125,1766981434203,-420.0,0.00014072,2]
[399988126,1766981434212,-167.82927429,0.0001408,2]
[399988127,1766981434221,-290.728035,0.0001408,2]
[399988128,1766981434231,-1680.0,0.00014112,2]
[399988129,1766981434240,-300.0,0.0001419,2]
[399988130,1766981434251,-500.0,0.00014353,2]
[399988131,1766981434260,-2906.6,0.00014378,2]
[399988132,1766981434271,-153.87,0.00014563,2]
[399988133,1766981434281,-500.57351062,0.00014573,2]
[399988134,1766981434291,-502.55394053,0.00014573,2]
[399988135,1766981434301,-500.0,0.00014573,2]
[399988136,1766981434315,-500.0,0.00014573,2]
[399988137,1766981434326,-503.03656891,0.00014573,2]
[399988138,1766981434336,-2906.6,0.00014778,2]
[399988139,1766981434347,-155.0,0.0001512,2]
[399988140,1766981434357,-832.20721175,0.00015121,2]
[399988141,1766981434366,-2906.6,0.00015177,2]
[399988142,1766981434376,-587.0,0.00015435,2]
[399988143,1766981434387,-587.0,0.00015435,2]
[399988144,1766981434397,-1000.0,0.00015517,2]
[399988145,1766981434406,-2351.0,0.00015523,2]
[399988146,1766981434416,-917.44,0.00015885,2]
[399988147,1766981434427,-250.0,0.00015921,2]
[399988148,1766981434436,-500.0,0.00015973,2]
[399988149,1766981434446,-167.03658477,0.00016016,2]
[399988150,1766981434455,-715.00547975,0.00016116,2]
[399988151,1766981434465,-6511.56,0.00016116,2]
[399988152,1766981434476,-999.99,0.00016116,2]
[399988153,1766981434485,-9999.99,0.00016116,2]
[399988154,1766981434494,-299.99,0.00016116,4]
[399988155,1766981434504,-4999.99,0.00016116,2]
[399988156,1766981434513,-499.99,0.00016116,2]
[399988157,1766981434523,-150.99,0.00016116,2]
[399988158,1766981434532,-19544.12,0.00016116,2]
[399988159,1766981434542,-825.89623844,0.00016116,2]
[399988160,1766981437961,-9174.09376156,0.00016116,2]
[399988161,1766981437971,-476.8920608,0.00016338,2]
[399988162,1766981437981,-168.82740059,0.00016438,2]
[399988163,1766981437990,-501.72362349,0.00016521,2]
[399988164,1766981438000,-164.31,0.00016712,2]
[399988165,1766981438009,-168.0,0.00016762,2]
[399988166,1766981438019,-168.0,0.00016877,2]
[399988167,1766981438029,-208.01838355,0.000169,2]
[399988168,1766981438042,-1090.66059968,0.000169,2]
[399988169,1766981438056,-5939.7185,0.000169,2]
[399988170,1766981438067,-1524.28191294,0.000169,2]
[399988171,1766981438079,-171889.50401396,0.000169,2]
[399988172,1766981438113,-1457.87671966,0.000169,2]
[399988173,1766981438126,-633.84258908,0.000169,2]
[399988174,1766981438136,-284.24658286,0.0001693,2]
[399988175,1766981438148,-538.75341714,0.0001693,2]
[399988176,1766981438157,-311.0,0.0001693,2]
[399988177,1766981438168,-250.0,0.00017,2]
[399988178,1766981438178,-168.0,0.00017022,2]
[399988179,1766981438187,-224.1,0.00017062,2]
[399988180,1766981438196,-528.86400136,0.00017076,2]
[399988181,1766981438209,-240.13599864,0.00017076,2]
[399988182,1766981438219,-168.0,0.00017102,2]
[399988183,1766981438228,-168.0,0.00017148,2]
[399988184,1766981438237,-168.0,0.00017416,2]
[399988185,1766981438246,-1000.0,0.00017457,2]
[399988186,1766981438256,-168.0,0.0001756,2]
[399988187,1766981438265,-168.0,0.00017563,2]
[399988188,1766981438275,-168.0,0.00017674,2]
[399988189,1766981438285,-168.0,0.00017772,2]
[399988190,1766981438295,-1600.0,0.00017889,2]
[399988191,1766981438306,-1852.42,0.00017912,2]
[399988192,1766981438316,-999.0,0.00017969,3]
[399988193,1766981438325,-168.0,0.00017972,2]
[399988195,1766981438335,-1524.98,0.00018214,2]
[399988197,1766981438344,-168.0,0.00018217,2]
[399988199,1766981438354,-168.0,0.00018329,2]
[399988201,1766981438364,-941.01,0.00018349,2]
[399988203,1766981438373,-1152.0,0.00018569,2]
[399988205,1766981438385,-200.18498752,0.00019082,2]
[399988207,1766981438394,-1000.0,0.00019396,2]
[399988209,1766981438403,-224.1,0.00019415,2]
[399988211,1766981438413,-715.00547975,0.00019431,2]
[399988213,1766981438423,-504.0,0.00019479,2]
[399988215,1766981438433,-5000.00359862,0.0002,2]
[399988217,1766981438442,-1600.0,0.00020125,2]
[399988219,1766981438451,-595.19,0.00020187,2]
[399988221,1766981438461,-825.0,0.00020368,2]
[399988223,1766981438470,-167.03658477,0.00020453,2]
[399988225,1766981438479,-1327.0,0.00020881,2]
[399988227,1766981438488,-1611.0,0.00020884,2]
[399988229,1766981438498,-607.844,0.00020884,2]
[399988231,1766981438507,-1264.0,0.00020884,2]
[399988233,1766981438517,-6539.0,0.00020887,2]
[399988235,1766981438526,-4810.0,0.00020887,2]
[399988237,1766981438535,-564.0,0.00020887,2]
[399988239,1766981438545,-150.0,0.00021297,2]
[399988241,1766981438554,-150.0,0.00021297,2]
[399988243,1766981438563,-1000.0,0.00021336,2]
[399988245,1766981438573,-200.0,0.00021388,2]
[399988247,1766981438582,-224.1,0.00021769,2]
[399988249,1766981438591,-5000.0,0.00021918,2]
[399988251,1766981438600,-151.92,0.00021918,30]
[399988253,1766981438610,-500.0,0.00021918,2]
[399988255,1766981438619,-500.0,0.00021918,2]
[399988257,1766981438629,-500.0,0.00021918,2]
[399988259,1766981438639,-500.0,0.00021918,2]
[399988261,1766981438648,-500.0,0.00021918,2]
[399988263,1766981438657,-512.62897032,0.00021918,2]
[399988265,1766981438667,-677.13,0.00022,7]
[399988267,1766981438677,-1600.0,0.00022361,2]
[399988269,1766981438686,-715.00547975,0.00022747,2]
[399988271,1766981438696,-553.64373807,0.00022976,2]
[399988273,1766981438706,-567.0,0.00022976,2]
[399988275,1766981438715,-1000.0,0.00023275,2]
[399988277,1766981438726,-1327.0,0.00023881,2]
[399988279,1766981438736,-1611.0,0.00023884,2]
[399988281,1766981438745,-1264.0,0.00023884,2]
[399988283,1766981438755,-6539.0,0.00023887,2]
[399988285,1766981438764,-4810.0,0.00023887,2]
[399988287,1766981438774,-564.0,0.00023887,2]
[399988289,1766981438783,-224.1,0.00024122,2]
[399988291,1766981438793,-150.0,0.00024297,2]
[399988293,1766981438803,-150.0,0.00024297,2]
[399988295,1766981438812,-1600.0,0.00024597,2]
[399988297,1766981438822,-1000.0,0.00024658,2]
[399988299,1766981438832,-167.03658477,0.00024891,8]
[399988301,1766981438842,-143668.235071,0.000249,3]
[399988303,1766981438852,-164.82436395,0.000251,2]
[399988305,1766981438862,-677.13,0.000251,7]
[399988307,1766981438872,-2000.0,0.000252,2]
[399988309,1766981438881,-567.0,0.00025715,2]
[399988311,1766981438891,-715.00547975,0.00026062,2]
[399988313,1766981438901,-224.1,0.00026476,2]
[399988315,1766981438917,-200.0,0.00026512,2]
[399988317,1766981438928,-595.19,0.00026676,2]
[399988319,1766981438939,-2591.0,0.0002688,2]
[399988321,1766981438949,-1327.0,0.00026881,2]
[399988322,1766981438960,-1611.0,0.00026884,2]
[399988323,1766981438969,-1264.0,0.00026884,2]
[399988324,1766981438980,-6539.0,0.00026887,2]
[399988325,1766981438989,-50.12317545,0.00026887,2]
[399988326,1766981439002,-4759.87682455,0.00026887,2]
[399988327,1766981439012,-564.0,0.00026887,2]
[399988328,1766981439022,-150.0,0.00027297,2]
[399988329,1766981439031,-150.0,0.00027297,2]
[399988330,1766981439041,-151.92,0.00027789,30]
[399988331,1766981439051,-197.27563813,0.00027819,30]
[399988332,1766981439060,-476.89206079,0.0002827,2]
[399988333,1766981439070,-567.0,0.00028454,2]
[399988334,1766981439080,-388.20751513,0.000285,7]
[399988367,1766981440056,-500.0,0.00025819,2]
[399988368,1766981440066,-500.0,0.0002582,2]
[399988369,1766981440075,-500.0,0.00025821,2]
[399988370,1766981440086,-500.0,0.00025822,2]
[399988371,1766981440095,-315.09651318,0.00025823,2]
[399988372,1766981440131,-184.90348682,0.00025823,2]
[399988373,1766981440141,-500.0,0.00025824,2]
[399988374,1766981440150,-438.52253669,0.00025825,2]
[399988375,1766981440169,-61.47746331,0.00025825,2]
[399988376,1766981440179,-500.0,0.00025826,2]
[399988377,1766981440188,-288.92248487,0.000285,7]
[399988378,1766981440198,-224.1,0.00028829,2]
[399988379,1766981440207,-1574.22417582,0.000289,2]
[399988380,1766981440219,-425.77582418,0.000289,2]
[399988381,1766981440230,-150.0,0.00029039,2]
[399988382,1766981440242,-167.03658477,0.00029328,15]
[399988383,1766981440253,-715.00547975,0.00029378,2]
[399988384,1766981440262,-691.47785223,0.00029881,2]
[399988385,1766981440274,-635.52214777,0.00029881,2]
[399988386,1766981440284,-1611.0,0.00029884,2]
[399988387,1766981440294,-1264.0,0.00029884,2]
[399988388,1766981440306,-874.16932782,0.00029887,2]
[399988390,1766981440950,-1.7e-07,0.00025827,2]
[399988391,1766981440962,-499.99999983,0.00025827,2]
[399988392,1766981440973,-274.69858457,0.00025828,2]
[399988393,1766981440988,-225.30141543,0.00025828,2]
[399988394,1766981440998,-746.85856785,0.00029887,2]
[399988396,1766981443690,-151.0,0.00017494,2]
[399988397,1766981443703,-182.950754,0.00020887,2]
[399988398,1766981443744,-1595.48774843,0.00020887,2]
[399988402,1766981443871,-374.015715,0.00020887,2]
[399988412,1766981445926,-279.54578257,0.00020887,2]
[399988413,1766981445936,-2360.45421743,0.00023887,2]
[399988414,1766981445947,-71.54578257,0.00023887,2]
[399988415,1766981445956,-500.0,0.00025829,2]
[399988416,1766981445966,-500.0,0.0002583,2]
[399988417,1766981445975,-500.0,0.00025831,2]
[399988418,1766981445984,-500.0,0.00025832,2]
[399988419,1766981445993,-500.0,0.00025833,2]
[399988420,1766981446002,-500.0,0.00025834,2]
[399988421,1766981446011,-204.9998,0.00025835,2]
[399988422,1766981446021,-2432.0,0.00026887,2]
[399988423,1766981446030,-4917.97210433,0.00029887,2]
[399988424,1766981446039,-4810.0,0.00029887,2]
[399988425,1766981446047,-564.0,0.00029887,2]
[399988426,1766981446057,-2432.0,0.00029887,2]
[399988427,1766981446065,-404.03974745,0.00030136,2]
[399988428,1766981446075,-477.8,0.00030137,3]
[399988429,1766981446084,-355.8,0.00030137,3]
[399988430,1766981446093,-150.0,0.00030297,2]
[399988431,1766981446103,-164.82436393,0.00030946,2]
[399988432,1766981446112,-567.0,0.00031193,2]
[399988433,1766981446121,-806.81111654,0.000326,2]
[399988434,1766981446189,-1193.18888346,0.000326,2]
[399988435,1766981446199,-150.0,0.00032603,2]
[399988436,1766981446208,-166.29168154,0.00032603,2]
[399988437,1766981446217,-150.0,0.00032603,2]
[399988438,1766981446226,-150.0,0.00032603,2]
[399988439,1766981446236,-150.0,0.00032603,2]
[399988440,1766981446249,-157.11485527,0.00032603,2]
[399988441,1766981446258,-150.63621611,0.00032603,2]
[399988442,1766981446267,-150.0,0.00032603,2]
[399988443,1766981446278,-150.0,0.00032603,2]
[399988444,1766981446287,-134.83836362,0.00032603,2]
[399988449,1766981446525,-15.16163638,0.00032603,2]
[399988450,1766981446535,-150.0,0.00032603,2]
[399988451,1766981446543,-177.59713172,0.0003263,2]
[399988452,1766981446552,-156.19348886,0.0003263,2]
[399988453,1766981446564,-148.27415018,0.0003263,2]
[399988454,1766981446576,-1.72584982,0.0003263,2]
[399988455,1766981446585,-150.0,0.0003263,2]
[399988456,1766981446595,-210.78763353,0.00032658,2]
[399988457,1766981446605,-46.62845419,0.00032658,2]
[399988458,1766981455810,500.0,0.00012731,2]
[399988459,1766981466093,5000.0,0.00019757,120]
[399988460,1766981466200,5000.0,0.00019641,120]
[399988461,1766981466293,681.08808962,0.00027502,120]
[399988462,1766981467745,337.55725979,0.00019757,120]
[399988463,1766981606210,953.23,0.00026793,120]
[399988464,1766981620836,546.986,0.00030137,120]
[399988465,1766981634224,1862.33324182,0.00030136,120]
[399988468,1766982319908,4473.03586434,9e-05,2]
[399988469,1766982339472,1058.33,0.00025014,120]
[399988470,1766982360574,5526.97413566,8e-05,2]
[399988471,1766982360597,7664.65247346,8e-05,2]
[399988472,1766982364462,2335.35752654,0.00011,2]
[399988473,1766982364485,1530.45255363,0.00011,2]
[399988476,1766982461421,285.0,0.00030136,120]
[399988483,1766982517123,8469.55744637,0.0001,2]
[399988484,1766982517146,4776.23116902,0.0001,2]
[399988498,1766982631993,-175.53182734,0.00014472,2]
[399988501,1766982632003,-270.0,0.00014472,2]
[399988504,1766982632012,-195.0,0.00014475,2]
[399988507,1766982632022,-250.0,0.00014478,2]
[399988510,1766982632031,-195.0,0.00014533,2]
[399988511,1766982632040,-1200.0,0.00014571,2]
[399988512,1766982632050,-300.0,0.00014572,2]
[399988513,1766982632059,-1200.0,0.00014572,2]
[399988514,1766982632072,-150.0,0.00014572,2]
[399988515,1766982632081,-500.0,0.00014573,2]
[399988516,1766982632091,-500.0,0.00014573,2]
[399988517,1766982632100,-502.4032715,0.00014573,2]
[399988518,1766982632109,-116.80336772,0.00014573,2]
[399988519,1766982632121,-383.19663228,0.00014573,2]
[399988520,1766982632130,-500.0,0.00014573,2]
[399988521,1766982632140,-500.0,0.00014573,2]
[399988522,1766982632149,-162.3252142,0.00014573,2]
[399988523,1766982632159,-68.42845312,0.00014573,2]
[399988524,1766982632171,-431.57154688,0.00014573,2]
[399988525,1766982632180,-306.42468761,0.00014573,2]
[399988526,1766982632190,-340.58517004,0.00014573,2]
[399988527,1766982632199,-500.0,0.00014573,2]
[399988528,1766982632209,-500.0,0.00014573,2]
[399988529,1766982632218,-500.0,0.00014573,2]
[399988530,1766982632227,-503.31958462,0.00014573,2]
[399988531,1766982632236,-503.9104849,0.00014573,2]
[399988532,1766982632246,-500.0,0.00014573,2]
[399988533,1766982632255,-242.25418909,0.00014573,2]
[399988534,1766982632274,-257.74581091,0.00014573,2]
[399988535,1766982632283,-501.3040805,0.00014573,2]
[399988536,1766982632293,-500.0,0.00014573,2]
[399988537,1766982632303,-504.42113663,0.00014573,2]
[399988538,1766982632312,-803.02,0.00014573,2]
[399988539,1766982632322,-803.02,0.00014847,2]
[399988540,1766982632331,-1591.07,0.00014915,2]
[399988541,1766982632341,-162.45236439,0.00015121,2]
[399988542,1766982632350,-500.0,0.00015121,2]
[399988544,1766982632359,-502.188218,0.00015121,2]
[399988547,1766982632369,-501.71296727,0.00015121,2]
[399988550,1766982632378,-501.75373114,0.00015121,2]
[399988553,1766982632387,-549.5014271,0.00015121,2]
[399988556,1766982632396,-500.0,0.00015121,2]
[399988559,1766982632405,-501.34411868,0.00015121,2]
[399988561,1766982632414,-388.47775087,0.00015121,2]
[399988563,1766982632424,-500.0,0.00015121,2]
[399988565,1766982632433,-1000.0,0.00015121,2]
[399988567,1766982632443,-803.02,0.00015121,2]
[399988569,1766982632456,-803.02,0.00015395,2]
[399988571,1766982632467,-500.0,0.00015594,2]
[399988573,1766982632476,-500.0,0.00015594,2]
[399988575,1766982632486,-500.0,0.00015594,2]
[399988577,1766982632495,-465.31709492,0.00015594,2]
[399988580,1766982632506,-34.68290508,0.00015594,2]
[399988582,1766982632515,-500.0,0.00015594,2]
[399988584,1766982632525,-500.0,0.00015594,2]
[399988586,1766982632534,-500.0,0.00015594,2]
[399988588,1766982632544,-500.0,0.00015594,2]
[399988590,1766982632554,-500.0,0.00015594,2]
[399988592,1766982632564,-500.0,0.00015594,2]
[399988594,1766982632573,-10.83709492,0.00015594,2]
[399988596,1766982632584,-489.16290508,0.00015594,2]
[399988598,1766982632594,-242.02723212,0.00015594,2]
[399988600,1766982632605,-257.97276788,0.00015594,2]
[399988602,1766982632615,-500.0,0.00015594,2]
[399988604,1766982632626,-500.0,0.00015594,2]
[399988607,1766982632635,-500.0,0.00015594,2]
[399988608,1766982632649,-500.0,0.00015594,2]
[399988611,1766982632658,-500.0,0.00015594,2]
[399988613,1766982632668,-500.0,0.00015594,2]
[399988615,1766982632677,-500.0,0.00015594,2]
[399988616,1766982632687,-500.0,0.00015594,2]
[399988618,1766982632696,-500.0,0.00015594,2]
[399988621,1766982632705,-500.0,0.00015594,2]
[399988623,1766982632714,-500.0,0.00015594,2]
[399988624,1766982632727,-500.0,0.00015594,2]
[399988626,1766982632736,-500.0,0.00015594,2]
[399988628,1766982632745,-440.13309821,0.00015594,2]
[399988630,1766982632754,-803.02,0.00015668,2]
[399988632,1766982632763,-501.46542866,0.00015668,2]
[399988634,1766982632773,-577.52800519,0.00015684,2]
[399988635,1766982632783,-1000.0,0.00015693,2]
[399988636,1766982632793,-9999.99,0.00015694,2]
[399988637,1766982632803,-999.99,0.00015694,2]
[399988638,1766982632812,-12292.44,0.00015694,2]
[399988639,1766982632822,-255.0,0.00015694,2]
[399988640,1766982632831,-175.53182734,0.00015819,2]
[399988641,1766982632840,-158.96402027,0.00015819,2]
[399988642,1766982632850,-10478.7634447,0.00015819,2]
[399988643,1766982632862,-158.41226066,0.00015819,2]
[399988644,1766982632871,-151.0,0.00015838,2]
[399988645,1766982632880,-151.0,0.00015839,2]
[399988646,1766982632890,-151.0,0.00015839,2]
[399988647,1766982632900,-151.0,0.0001584,2]
[399988648,1766982632909,-34.6507815,0.0001584,2]
[399988649,1766982632921,-116.3492185,0.0001584,2]
[399988650,1766982632930,-584.52207758,0.00015854,2]
[399988651,1766982632939,-171.79401436,0.00015854,2]
[399988652,1766982632951,-328.20598564,0.00015854,2]
[399988653,1766982632960,-275.63637033,0.00015854,2]
[399988654,1766982632971,-224.36362967,0.00015854,2]
[399988655,1766982632980,-181.96810298,0.00015854,2]
[399988656,1766982632991,-13.29518369,0.00015854,2]
[399988657,1766982633001,-500.0,0.00015854,2]
[399988658,1766982633010,-267.42008706,0.00015854,2]
[399988659,1766982633020,-232.57991294,0.00015854,2]
[399988660,1766982633030,-500.0,0.00015854,2]
[399988661,1766982633040,-500.0,0.00015854,2]
[399988662,1766982633049,-500.0,0.00015854,2]
[399988663,1766982633058,-333.3653807,0.00015854,2]
[399988664,1766982633070,-166.6346193,0.00015854,2]
[399988665,1766982633079,-500.0,0.00015854,2]
[399988666,1766982633088,-500.0,0.00015854,2]
[399988667,1766982633096,-500.0,0.00015854,2]
[399988668,1766982633106,-395.49629154,0.00015854,2]
[399988669,1766982633117,-104.50370846,0.00015854,2]
[399988670,1766982633125,-500.0,0.00015854,2]
[399988671,1766982633134,-500.0,0.00015854,2]
[399988672,1766982633143,-500.0,0.00015854,2]
[399988673,1766982633152,-500.0,0.00015854,2]
[399988674,1766982633161,-500.0,0.00015854,2]
[399988675,1766982633170,-500.0,0.00015854,2]
[399988676,1766982633179,-500.0,0.00015854,2]
[399988677,1766982633189,-500.0,0.00015854,2]
[399988678,1766982633198,-500.0,0.00015854,2]
[399988679,1766982633209,-500.0,0.00015854,2]
[399988680,1766982633218,-500.0,0.00015854,2]
[399988681,1766982633231,-500.0,0.00015854,2]
[399988682,1766982633240,-500.0,0.00015854,2]
[399988683,1766982633250,-500.0,0.00015854,2]
[399988684,1766982633260,-500.0,0.00015854,2]
[399988685,1766982633270,-500.0,0.00015854,2]
[399988686,1766982633279,-318.91410738,0.00015854,2]
[399988687,1766982633289,-191.44343164,0.00015854,2]
[399988688,1766982633302,-308.55656836,0.00015854,2]
[399988689,1766982633313,-500.0,0.00015854,2]
[399988690,1766982633323,-500.0,0.00015854,2]
[399988691,1766982633333,-500.0,0.00015854,2]
[399988692,1766982633345,-500.0,0.00015854,2]
[399988693,1766982633355,-250.0,0.00015854,2]
[399988694,1766982633365,-151.0,0.00015855,2]
[399988695,1766982633374,-2497.46882188,0.00015855,2]
[399988696,1766982633386,-357.87831592,0.00015855,2]
[399988697,1766982633399,-3681.56994553,0.00015855,2]
[399988698,1766982633416,-835.19021143,0.00015855,2]
[399988699,1766982633428,-567.05475244,0.00015855,2]
[399988700,1766982633439,-7043.65170387,0.00015855,2]
[399988701,1766982633450,-14934.47581648,0.00015855,2]
[399988702,1766982633463,-290.05642929,0.00015855,2]
[399988703,1766982633481,-716.94858052,0.00015855,2]
[399988704,1766982633492,-1000.22428229,0.00015855,2]
[399988707,1766982638136,-915.68180285,0.00015855,2]
[399988708,1766982638147,-846.33812054,0.00015855,2]
[399988709,1766982638190,-711.69620473,0.00015855,2]
[399988710,1766982638202,-766.80359483,0.00015855,2]
[399988711,1766982638246,-11407.23551776,0.00015855,2]
[399988712,1766982638258,-39468.99506,0.00015855,2]
[399988713,1766982638356,-480.71237647,0.00015855,2]
[399988714,1766982638367,-2974.71406292,0.00015855,2]
[399988715,1766982638379,-36014.0,0.00015855,2]
[399988716,1766982638389,-639.31888652,0.00015855,2]
[399988717,1766982638400,-426.61846658,0.00015855,2]
[399988718,1766982638411,-378.77500365,0.00015855,2]
[399988719,1766982638422,-900.69,0.00015855,2]
[399988720,1766982638438,-9165.93041853,0.00015855,2]
[399988787,1766982640185,-210428.75196144,0.00015855,2]
[399988788,1766982640195,-8242.04724838,0.00015855,2]
[399988789,1766982640208,-4497.13481411,0.00015855,2]
[399988790,1766982640242,-311.98467859,0.00015855,2]
[399988791,1766982640255,-524.9326699,0.00015855,2]
[399988792,1766982640268,-4085.62570591,0.00015855,2]
[399988793,1766982640281,-450.835,0.00015855,2]
[399988794,1766982640295,-1695.7149895,0.00015855,2]
[399988795,1766982640306,-1348.04538196,0.00015855,2]
[399988796,1766982640317,-4065.58012154,0.00015855,2]
[399988797,1766982640331,-347.053942,0.00015855,2]
[399988798,1766982640358,-626980.26511164,0.00015855,2]
[399988799,1766982640368,-7352.97,0.00015919,2]
[399988800,1766982640377,-334.49,0.00015919,2]
[399988801,1766982640387,-150.99,0.00015919,2]
[399988802,1766982640397,-1532.23,0.00015919,2]
[399988803,1766982640406,-250.0,0.00015919,2]
[399988804,1766982640416,-195.0,0.00015919,2]
[399988805,1766982640426,-331.41039818,0.00015919,2]
[399988806,1766982640437,-803.07016109,0.00015942,2]
[399988807,1766982640446,-1680.0,0.00015954,2]
[399988808,1766982640458,-420.0,0.00015955,2]
[399988809,1766982640468,-200.0,0.00015963,2]
[399988810,1766982640477,-200.0,0.00015963,2]
[399988811,1766982640487,-200.0,0.00015963,2]
[399988812,1766982640496,-500.0,0.00015963,2]
[399988813,1766982640505,-478.2911143,0.00015964,2]
[399988814,1766982640514,-500.0,0.00015973,2]
[399988815,1766982640524,-519.50532651,0.00015973,2]
[399988816,1766982640533,-500.0,0.00015973,2]
[399988817,1766982640543,-500.0,0.00015973,2]
[399988818,1766982640552,-500.0,0.00015973,2]
[399988819,1766982640561,-500.49282499,0.00015973,2]
[399988820,1766982640571,-500.0,0.00015973,2]
[399988821,1766982640582,-500.0,0.00015973,2]
[399988822,1766982640593,-500.0,0.00015973,2]
[399988823,1766982640602,-500.83897132,0.00015973,2]
[399988824,1766982640611,-500.0,0.00015973,2]
[399988825,1766982640620,-500.95817648,0.00015973,2]
[399988826,1766982640629,-501.13724096,0.00015973,2]
[399988827,1766982640639,-500.78077374,0.00015973,2]
[399988828,1766982640651,-501.0091354,0.00015973,2]
[399988829,1766982640660,-500.74813979,0.00015973,2]
[399988830,1766982640670,-500.63458912,0.00015973,2]
[399988831,1766982640681,-640.37369029,0.00015973,2]
[399988832,1766982640694,-335.0269106,0.00015973,2]
[399988833,1766982640703,-500.0,0.00015973,2]
[399988834,1766982640714,-500.0,0.00015973,2]
[399988835,1766982640725,-500.0,0.00015973,2]
[399988836,1766982640734,-571.00606408,0.00015973,2]
[399988837,1766982640743,-162.58530603,0.00015973,2]
[399988838,1766982640752,-500.0,0.00015973,2]
[399988839,1766982640762,-500.0,0.00015973,2]
[399988840,1766982640771,-160.36337556,0.00015973,2]
[399988841,1766982640780,-500.46864866,0.00015973,2]
[399988842,1766982640790,-160.33774936,0.00015973,2]
[399988843,1766982640799,-156.73139924,0.00015973,2]
[399988844,1766982640808,-160.38941368,0.00015973,2]
[399988845,1766982640817,-160.39011849,0.00015973,2]
[399988846,1766982640828,-501.98115374,0.00015973,2]